[Event "Late-Titled-Tuesday-Blitz-January-30-2024"]
[Site "Chess.com"]
[Date "2024.01.30"]
[Round "4"]
[White "Firouzja2003"]
[Black "Hrant_ChessMood"]
[Result "1-0"]
[WhiteElo "3144"]
[BlackElo "2904"]
[TimeControl "180+1"]
[EndTime "14:39:03 PST"]
[Termination "Firouzja2003 won on time"]

1. d4 {[%clk 0:03:00.9]} 1... d5 {[%clk 0:02:56.1]} 2. Nf3 {[%clk 0:03:01.1]}
2... Nf6 {[%clk 0:02:56.1]} 3. c4 {[%clk 0:03:01.7]} 3... e6 {[%clk 0:02:56.4]}
4. Nc3 {[%clk 0:02:51.2]} 4... Be7 {[%clk 0:02:56.5]} 5. e3 {[%clk 0:02:49.6]}
5... O-O {[%clk 0:02:55.6]} 6. Bd2 {[%clk 0:02:49.6]} 6... c5 {[%clk 0:02:48]}
7. cxd5 {[%clk 0:02:48.9]} 7... cxd4 {[%clk 0:02:42.1]} 8. Nxd4 {[%clk
0:02:48.3]} 8... Nxd5 {[%clk 0:02:42.3]} 9. Be2 {[%clk 0:02:46.3]} 9... Nxc3
{[%clk 0:02:36]} 10. Bxc3 {[%clk 0:02:46.2]} 10... Bd7 {[%clk 0:02:36.9]} 11.
Bf3 {[%clk 0:02:44.8]} 11... Qb6 {[%clk 0:02:34]} 12. Rc1 {[%clk 0:02:35.8]}
12... Rd8 {[%clk 0:02:26.2]} 13. O-O {[%clk 0:02:18.1]} 13... Nc6 {[%clk
0:02:26.4]} 14. Bxc6 {[%clk 0:02:17.4]} 14... Bxc6 {[%clk 0:02:25.8]} 15. Qg4
{[%clk 0:02:17]} 15... Bf8 {[%clk 0:02:08.3]} 16. Nxc6 {[%clk 0:02:12.7]} 16...
bxc6 {[%clk 0:02:09.2]} 17. h4 {[%clk 0:02:08.4]} 17... Qb5 {[%clk 0:01:57.6]}
18. h5 {[%clk 0:02:05]} 18... Qf5 {[%clk 0:01:53]} 19. Qxf5 {[%clk 0:02:05]}
19... exf5 {[%clk 0:01:53.9]} 20. Rfd1 {[%clk 0:02:05.3]} 20... f6 {[%clk
0:01:45.1]} 21. h6 {[%clk 0:01:57.1]} 21... Rxd1+ {[%clk 0:01:28.6]} 22. Rxd1
{[%clk 0:01:56.8]} 22... g6 {[%clk 0:01:29.5]} 23. Bxf6 {[%clk 0:01:52.6]} 23...
Bxh6 {[%clk 0:01:29.7]} 24. Rd7 {[%clk 0:01:51.9]} 24... c5 {[%clk 0:01:26.9]}
25. a4 {[%clk 0:01:48.2]} 25... a6 {[%clk 0:01:22.5]} 26. Bc3 {[%clk 0:01:46.4]}
26... Bf8 {[%clk 0:01:19.1]} 27. Kf1 {[%clk 0:01:40.2]} 27... Re8 {[%clk
0:01:11.8]} 28. Ra7 {[%clk 0:01:25.7]} 28... Re6 {[%clk 0:01:11.6]} 29. Ke2
{[%clk 0:01:26]} 29... f4 {[%clk 0:01:08.9]} 30. Kd3 {[%clk 0:01:24.1]} 30...
fxe3 {[%clk 0:01:09.2]} 31. fxe3 {[%clk 0:01:24.4]} 31... h5 {[%clk 0:01:07.2]}
32. e4 {[%clk 0:01:19.3]} 32... c4+ {[%clk 0:00:57.7]} 33. Kd4 {[%clk
0:01:19.4]} 33... g5 {[%clk 0:00:48.9]} 34. e5 {[%clk 0:01:15.1]} 34... g4
{[%clk 0:00:40.8]} 35. Kd5 {[%clk 0:01:14.5]} 35... Re8 {[%clk 0:00:19.9]} 36.
Rxa6 {[%clk 0:01:04.7]} 36... Kh7 {[%clk 0:00:20.2]} 37. Rc6 {[%clk 0:00:57.8]}
37... Bh6 {[%clk 0:00:14.1]} 38. Rxc4 {[%clk 0:00:57.1]} 38... Kg6 {[%clk
0:00:14.4]} 39. Rc6+ {[%clk 0:00:56.3]} 39... Kh7 {[%clk 0:00:13.2]} 40. a5
{[%clk 0:00:46.6]} 40... h4 {[%clk 0:00:13.6]} 41. Rc4 {[%clk 0:00:47.1]} 41...
Rg8 {[%clk 0:00:13.7]} 42. a6 {[%clk 0:00:47.8]} 42... Be3 {[%clk 0:00:13.5]}
43. Bd4 {[%clk 0:00:36.5]} 43... Rd8+ {[%clk 0:00:12.9]} 44. Ke4 {[%clk
0:00:36.5]} 44... Bxd4 {[%clk 0:00:08.7]} 45. Rxd4 {[%clk 0:00:37]} 45... Ra8
{[%clk 0:00:07.9]} 46. Ra4 {[%clk 0:00:33]} 46... Kg6 {[%clk 0:00:05]} 47. b4
{[%clk 0:00:30.4]} 47... h3 {[%clk 0:00:04.9]} 48. gxh3 {[%clk 0:00:30.5]} 48...
gxh3 {[%clk 0:00:05.8]} 49. b5 {[%clk 0:00:30.2]} 49... h2 {[%clk 0:00:05.3]}
50. Ra1 {[%clk 0:00:30.7]} 50... Kf7 {[%clk 0:00:02.2]} 51. Rh1 {[%clk
0:00:30.2]} 1-0

[Event "Late-Titled-Tuesday-Blitz-January-30-2024"]
[Site "Chess.com"]
[Date "2024.01.30"]
[Round "4"]
[White "PetrolulSah"]
[Black "Inepton_Fermion"]
[Result "0-1"]
[WhiteElo "2199"]
[BlackElo "2412"]
[TimeControl "180+1"]
[EndTime "14:39:04 PST"]
[Termination "Inepton_Fermion won on time"]

1. d4 {[%clk 0:03:00.9]} 1... g6 {[%clk 0:02:59.5]} 2. c4 {[%clk 0:03:00.7]}
2... Bg7 {[%clk 0:03:00.2]} 3. Nc3 {[%clk 0:03:00.8]} 3... c5 {[%clk 0:03:00.6]}
4. d5 {[%clk 0:03:00.1]} 4... Bxc3+ {[%clk 0:03:01.5]} 5. bxc3 {[%clk
0:02:59.3]} 5... e5 {[%clk 0:03:02.4]} 6. h4 {[%clk 0:02:53.4]} 6... h6 {[%clk
0:02:50.2]} 7. e4 {[%clk 0:02:44.3]} 7... d6 {[%clk 0:02:49.4]} 8. f4 {[%clk
0:02:40.1]} 8... exf4 {[%clk 0:02:43.8]} 9. Bxf4 {[%clk 0:02:39.1]} 9... Qe7
{[%clk 0:02:44.7]} 10. Bd3 {[%clk 0:02:35.9]} 10... Nf6 {[%clk 0:02:42.5]} 11.
Qe2 {[%clk 0:02:35]} 11... Bg4 {[%clk 0:02:42.4]} 12. Nf3 {[%clk 0:02:34.2]}
12... Nbd7 {[%clk 0:02:42]} 13. O-O {[%clk 0:02:32.6]} 13... Nh5 {[%clk
0:02:39.1]} 14. Bh2 {[%clk 0:02:28.4]} 14... O-O-O {[%clk 0:02:37.5]} 15. Rab1
{[%clk 0:02:15.2]} 15... Rde8 {[%clk 0:02:19.9]} 16. a4 {[%clk 0:02:11.3]} 16...
f5 {[%clk 0:02:06.6]} 17. Qb2 {[%clk 0:02:07.1]} 17... b6 {[%clk 0:01:19.4]} 18.
exf5 {[%clk 0:02:03.7]} 18... gxf5 {[%clk 0:01:06.3]} 19. a5 {[%clk 0:01:52.4]}
19... f4 {[%clk 0:00:59]} 20. Qb5 {[%clk 0:01:09.9]} 20... Qd8 {[%clk
0:00:17.5]} 21. Qa6+ {[%clk 0:00:58.4]} 21... Kb8 {[%clk 0:00:12.7]} 22. Bg6
{[%clk 0:00:57.2]} 22... Ref8 {[%clk 0:00:09.6]} 23. axb6 {[%clk 0:00:53.7]}
23... Nxb6 {[%clk 0:00:10.5]} 24. Ra1 {[%clk 0:00:48.5]} 24... Qc7 {[%clk
0:00:09.9]} 25. Rfe1 {[%clk 0:00:42.1]} 25... Ng3 {[%clk 0:00:07.8]} 26. Nd2
{[%clk 0:00:21.2]} 26... Bc8 {[%clk 0:00:05.1]} 27. Qa2 {[%clk 0:00:18]} 27...
Rhg8 {[%clk 0:00:05.4]} 28. h5 {[%clk 0:00:17.1]} 28... Bf5 {[%clk 0:00:04.1]}
29. Bxf5 {[%clk 0:00:13.1]} 29... Rxf5 {[%clk 0:00:04.3]} 30. Bxg3 {[%clk
0:00:13.1]} 30... Rxg3 {[%clk 0:00:03.7]} 31. Ne4 {[%clk 0:00:13.4]} 31... Rg8
{[%clk 0:00:03]} 32. Nxd6 {[%clk 0:00:12.9]} 32... Rfg5 {[%clk 0:00:01.8]} 33.
Re2 {[%clk 0:00:12.2]} 33... f3 {[%clk 0:00:01.8]} 34. Rf2 {[%clk 0:00:12]}
34... Rxg2+ {[%clk 0:00:02.4]} 35. Rxg2 {[%clk 0:00:11.9]} 35... Rxg2+ {[%clk
0:00:03.3]} 36. Qxg2 {[%clk 0:00:10.9]} 36... fxg2 {[%clk 0:00:04.2]} 37. Nb5
{[%clk 0:00:11.1]} 37... Qf7 {[%clk 0:00:04.2]} 38. Nxa7 {[%clk 0:00:07.7]}
38... Qf3 {[%clk 0:00:03.6]} 39. Nc6+ {[%clk 0:00:07.5]} 39... Kc7 {[%clk
0:00:04.1]} 40. Re1 {[%clk 0:00:04.9]} 40... Qxc3 {[%clk 0:00:03.7]} 41. Re7+
{[%clk 0:00:03.8]} 41... Nd7 {[%clk 0:00:04.3]} 0-1

[Event "Late-Titled-Tuesday-Blitz-January-30-2024"]
[Site "Chess.com"]
[Date "2024.01.30"]
[Round "4"]
[White "picturesquecheck"]
[Black "Nf3c5"]
[Result "1-0"]
[WhiteElo "2361"]
[BlackElo "2516"]
[TimeControl "180+1"]
[EndTime "14:39:05 PST"]
[Termination "picturesquecheck won on time"]

1. e4 {[%clk 0:03:00.9]} 1... c5 {[%clk 0:02:57.1]} 2. Nf3 {[%clk 0:02:59.3]}
2... Nc6 {[%clk 0:02:57]} 3. Bb5 {[%clk 0:02:53.8]} 3... Na5 {[%clk 0:02:55.7]}
4. O-O {[%clk 0:02:51.4]} 4... a6 {[%clk 0:02:55.4]} 5. Be2 {[%clk 0:02:38.8]}
5... e6 {[%clk 0:02:54.9]} 6. c3 {[%clk 0:02:36.9]} 6... Nc6 {[%clk 0:02:46.7]}
7. d4 {[%clk 0:02:35.8]} 7... d5 {[%clk 0:02:46.6]} 8. exd5 {[%clk 0:02:33.9]}
8... exd5 {[%clk 0:02:46.4]} 9. Re1 {[%clk 0:02:34.5]} 9... Be7 {[%clk
0:01:58.8]} 10. dxc5 {[%clk 0:02:29.6]} 10... Nf6 {[%clk 0:01:59.4]} 11. b4
{[%clk 0:02:26]} 11... O-O {[%clk 0:01:59.8]} 12. a3 {[%clk 0:02:20.6]} 12...
Ne4 {[%clk 0:01:57.4]} 13. Bb2 {[%clk 0:02:19.9]} 13... Bf6 {[%clk 0:01:56.2]}
14. Qc2 {[%clk 0:02:15.8]} 14... Bf5 {[%clk 0:01:45.7]} 15. Bd3 {[%clk
0:02:15.1]} 15... Bg4 {[%clk 0:01:18.2]} 16. Nbd2 {[%clk 0:02:05.5]} 16... Nxd2
{[%clk 0:01:12.1]} 17. Nxd2 {[%clk 0:02:04.9]} 17... g6 {[%clk 0:01:11]} 18. h3
{[%clk 0:02:03.4]} 18... Be6 {[%clk 0:01:09.7]} 19. Nf3 {[%clk 0:02:03.1]} 19...
a5 {[%clk 0:01:04.3]} 20. Rad1 {[%clk 0:02:00.9]} 20... Bg7 {[%clk 0:00:59.4]}
21. b5 {[%clk 0:01:49.9]} 21... Ne7 {[%clk 0:00:55.1]} 22. c4 {[%clk 0:01:50.2]}
22... Qc7 {[%clk 0:00:51.6]} 23. Bxg7 {[%clk 0:01:48.3]} 23... Kxg7 {[%clk
0:00:52]} 24. Qb2+ {[%clk 0:01:47.4]} 24... Kg8 {[%clk 0:00:51.9]} 25. cxd5
{[%clk 0:01:34]} 25... Nxd5 {[%clk 0:00:52.8]} 26. Nd4 {[%clk 0:01:25.3]} 26...
Bd7 {[%clk 0:00:35.9]} 27. c6 {[%clk 0:01:25.4]} 27... bxc6 {[%clk 0:00:35.5]}
28. bxc6 {[%clk 0:01:26.1]} 28... Bc8 {[%clk 0:00:23.2]} 29. Qb3 {[%clk
0:01:23.4]} 29... Nf6 {[%clk 0:00:20]} 30. Bc4 {[%clk 0:01:19.6]} 30... Rb8
{[%clk 0:00:20]} 31. Qa2 {[%clk 0:01:19.1]} 31... Kg7 {[%clk 0:00:20.4]} 32. Re2
{[%clk 0:01:15.1]} 32... Qb6 {[%clk 0:00:19.9]} 33. Red2 {[%clk 0:01:09.5]}
33... Qc5 {[%clk 0:00:20.1]} 34. Rc2 {[%clk 0:01:02.7]} 34... Bf5 {[%clk
0:00:18.9]} 35. Nxf5+ {[%clk 0:00:54.7]} 35... Qxf5 {[%clk 0:00:19.8]} 36. Bd3
{[%clk 0:00:51.3]} 36... Qe5 {[%clk 0:00:16.9]} 37. Rdc1 {[%clk 0:00:46.2]}
37... Qc7 {[%clk 0:00:14.9]} 38. Rc5 {[%clk 0:00:43.8]} 38... Rbd8 {[%clk
0:00:15.2]} 39. Bf1 {[%clk 0:00:43.4]} 39... Rd6 {[%clk 0:00:15.5]} 40. Qc2
{[%clk 0:00:42.2]} 40... Rfd8 {[%clk 0:00:15.3]} 41. Qc3 {[%clk 0:00:42.4]}
41... Rd2 {[%clk 0:00:14.4]} 42. Qxa5 {[%clk 0:00:40.8]} 42... Qf4 {[%clk
0:00:13.9]} 43. f3 {[%clk 0:00:25.4]} 43... Qe3+ {[%clk 0:00:10.5]} 44. Kh1
{[%clk 0:00:25.3]} 44... Nh5 {[%clk 0:00:10.3]} 45. Qc3+ {[%clk 0:00:23.4]}
45... Qxc3 {[%clk 0:00:09.7]} 46. R5xc3 {[%clk 0:00:24.3]} 46... Ng3+ {[%clk
0:00:09.9]} 47. Kh2 {[%clk 0:00:24.2]} 47... Nxf1+ {[%clk 0:00:07.9]} 48. Rxf1
{[%clk 0:00:24.2]} 48... Ra2 {[%clk 0:00:07.1]} 49. c7 {[%clk 0:00:24.2]} 49...
Rdd2 {[%clk 0:00:06.5]} 50. Rg1 {[%clk 0:00:24.1]} 1-0

[Event "Late-Titled-Tuesday-Blitz-January-30-2024"]
[Site "Chess.com"]
[Date "2024.01.30"]
[Round "4"]
[White "DenLaz"]
[Black "Elsa167"]
[Result "1-0"]
[WhiteElo "3049"]
[BlackElo "2866"]
[TimeControl "180+1"]
[EndTime "14:39:06 PST"]
[Termination "DenLaz won by checkmate"]

1. d4 {[%clk 0:03:00.9]} 1... Nf6 {[%clk 0:02:59.6]} 2. c4 {[%clk 0:03:01.5]}
2... g6 {[%clk 0:02:58.3]} 3. g3 {[%clk 0:03:01.1]} 3... Bg7 {[%clk 0:02:58.7]}
4. Bg2 {[%clk 0:03:01.8]} 4... O-O {[%clk 0:02:59.4]} 5. Nc3 {[%clk 0:03:02.5]}
5... d6 {[%clk 0:03:00]} 6. Nf3 {[%clk 0:03:03.2]} 6... Nbd7 {[%clk 0:03:00.6]}
7. O-O {[%clk 0:03:03.9]} 7... e5 {[%clk 0:03:01.3]} 8. e4 {[%clk 0:03:04.6]}
8... exd4 {[%clk 0:03:01]} 9. Nxd4 {[%clk 0:03:05.5]} 9... Re8 {[%clk
0:03:01.8]} 10. h3 {[%clk 0:03:05.9]} 10... Nc5 {[%clk 0:03:02.2]} 11. Re1
{[%clk 0:03:06.5]} 11... h6 {[%clk 0:03:02.7]} 12. f3 {[%clk 0:03:06.3]} 12...
c6 {[%clk 0:02:59.4]} 13. Be3 {[%clk 0:03:06.2]} 13... a5 {[%clk 0:02:52.5]} 14.
Qd2 {[%clk 0:03:06.1]} 14... h5 {[%clk 0:02:51]} 15. Rad1 {[%clk 0:03:05.8]}
15... a4 {[%clk 0:02:37.6]} 16. Nxc6 {[%clk 0:02:57.9]} 16... Ncxe4 {[%clk
0:01:51.6]} 17. fxe4 {[%clk 0:02:00.1]} 17... bxc6 {[%clk 0:01:50.8]} 18. Qxd6
{[%clk 0:02:00.8]} 18... Qa5 {[%clk 0:01:34.5]} 19. Qxc6 {[%clk 0:01:38.6]}
19... Bd7 {[%clk 0:01:20.6]} 20. Qc5 {[%clk 0:01:30.1]} 20... Qxc5 {[%clk
0:01:04.9]} 21. Bxc5 {[%clk 0:01:31]} 21... Rac8 {[%clk 0:01:05.4]} 22. Bd4
{[%clk 0:01:29.9]} 22... Be6 {[%clk 0:01:00.1]} 23. b3 {[%clk 0:01:23.2]} 23...
axb3 {[%clk 0:00:57.7]} 24. axb3 {[%clk 0:01:24.1]} 24... Rb8 {[%clk 0:00:53.8]}
25. Nb5 {[%clk 0:01:13.8]} 25... Nd7 {[%clk 0:00:51.7]} 26. Bxg7 {[%clk
0:01:05.3]} 26... Kxg7 {[%clk 0:00:52.6]} 27. Re3 {[%clk 0:00:52.7]} 27... Nc5
{[%clk 0:00:48.5]} 28. Rd4 {[%clk 0:00:26.9]} 28... Rec8 {[%clk 0:00:41.4]} 29.
Bf1 {[%clk 0:00:18.9]} 29... Bd7 {[%clk 0:00:25.8]} 30. b4 {[%clk 0:00:15.6]}
30... Bxb5 {[%clk 0:00:25.3]} 31. cxb5 {[%clk 0:00:13]} 31... Ne6 {[%clk
0:00:21]} 32. Rd7 {[%clk 0:00:13.3]} 32... Rc1 {[%clk 0:00:10]} 33. Kf2 {[%clk
0:00:12.7]} 33... Ra8 {[%clk 0:00:08.9]} 34. b6 {[%clk 0:00:08.6]} 34... Rb8
{[%clk 0:00:08.7]} 35. b7 {[%clk 0:00:07.7]} 35... Rb1 {[%clk 0:00:08.1]} 36. b5
{[%clk 0:00:07.5]} 36... Nc5 {[%clk 0:00:06.9]} 37. Rc7 {[%clk 0:00:07.6]} 37...
Nxb7 {[%clk 0:00:07.2]} 38. e5 {[%clk 0:00:06.9]} 38... Nd8 {[%clk 0:00:07]} 39.
e6 {[%clk 0:00:07.5]} 39... Nxe6 {[%clk 0:00:02.3]} 40. Rxe6 {[%clk 0:00:07.5]}
40... Ra8 {[%clk 0:00:01.1]} 41. Ree7 {[%clk 0:00:08.1]} 41... Ra2+ {[%clk
0:00:01.2]} 42. Be2 {[%clk 0:00:08.7]} 42... Rbb2 {[%clk 0:00:01.4]} 43. Rxf7+
{[%clk 0:00:09.2]} 43... Kh6 {[%clk 0:00:02.3]} 44. Rfe7 {[%clk 0:00:09.8]}
44... h4 {[%clk 0:00:02.4]} 45. gxh4 {[%clk 0:00:09.9]} 45... g5 {[%clk
0:00:03.3]} 46. Rc6# {[%clk 0:00:09.2]} 1-0

[Event "Late-Titled-Tuesday-Blitz-January-30-2024"]
[Site "Chess.com"]
[Date "2024.01.30"]
[Round "4"]
[White "rasmussvane"]
[Black "oskariot"]
[Result "1-0"]
[WhiteElo "2966"]
[BlackElo "2753"]
[TimeControl "180+1"]
[EndTime "14:39:07 PST"]
[Termination "rasmussvane won on time"]

1. Nf3 {[%clk 0:03:00.9]} 1... c5 {[%clk 0:02:58.5]} 2. c4 {[%clk 0:02:57.6]}
2... Nf6 {[%clk 0:02:55.9]} 3. Nc3 {[%clk 0:02:57.8]} 3... Nc6 {[%clk
0:02:55.5]} 4. e3 {[%clk 0:02:56.9]} 4... d6 {[%clk 0:02:50.3]} 5. d4 {[%clk
0:02:49]} 5... Bg4 {[%clk 0:02:48.6]} 6. Be2 {[%clk 0:02:33.6]} 6... g6 {[%clk
0:02:47.9]} 7. d5 {[%clk 0:02:33]} 7... Bxf3 {[%clk 0:02:43.9]} 8. Bxf3 {[%clk
0:02:31.8]} 8... Ne5 {[%clk 0:02:36.1]} 9. Be2 {[%clk 0:02:32.1]} 9... Bg7
{[%clk 0:02:36.7]} 10. O-O {[%clk 0:02:32]} 10... O-O {[%clk 0:02:36.9]} 11. e4
{[%clk 0:02:30.4]} 11... Ne8 {[%clk 0:02:06.9]} 12. Be3 {[%clk 0:02:26.5]} 12...
Nc7 {[%clk 0:02:06.7]} 13. Qd2 {[%clk 0:02:22.3]} 13... e6 {[%clk 0:01:57.1]}
14. Rad1 {[%clk 0:02:20.1]} 14... exd5 {[%clk 0:01:56.2]} 15. exd5 {[%clk
0:02:06.5]} 15... f5 {[%clk 0:01:44]} 16. h3 {[%clk 0:02:01.3]} 16... Rb8 {[%clk
0:01:25.7]} 17. f4 {[%clk 0:02:00.2]} 17... Nf7 {[%clk 0:01:26]} 18. Rfe1 {[%clk
0:01:59.3]} 18... Re8 {[%clk 0:01:25.7]} 19. Bf2 {[%clk 0:01:58.4]} 19... Qf6
{[%clk 0:01:18.3]} 20. Bd3 {[%clk 0:01:47.9]} 20... Rxe1+ {[%clk 0:01:10.2]} 21.
Rxe1 {[%clk 0:01:47.2]} 21... Re8 {[%clk 0:01:09.4]} 22. Rxe8+ {[%clk
0:01:39.7]} 22... Nxe8 {[%clk 0:01:09.3]} 23. Qd1 {[%clk 0:01:39.5]} 23... Qe7
{[%clk 0:01:04.5]} 24. Bf1 {[%clk 0:01:27.3]} 24... Bxc3 {[%clk 0:00:57.5]} 25.
bxc3 {[%clk 0:01:27.6]} 25... Nf6 {[%clk 0:00:58.4]} 26. Bd3 {[%clk 0:01:26.4]}
26... Ne4 {[%clk 0:00:57.7]} 27. Qe1 {[%clk 0:01:17.9]} 27... h6 {[%clk
0:00:33.5]} 28. g4 {[%clk 0:01:11.9]} 28... Kh7 {[%clk 0:00:14.5]} 29. Kh2
{[%clk 0:01:09.6]} 29... Qf6 {[%clk 0:00:04.8]} 30. gxf5 {[%clk 0:01:05.8]}
30... gxf5 {[%clk 0:00:04.5]} 31. Bxe4 {[%clk 0:01:05.8]} 31... fxe4 {[%clk
0:00:05.1]} 32. Qxe4+ {[%clk 0:01:06.6]} 32... Kg7 {[%clk 0:00:04.7]} 33. Be1
{[%clk 0:00:41.6]} 33... h5 {[%clk 0:00:04]} 34. Kg3 {[%clk 0:00:24.3]} 34...
Nh6 {[%clk 0:00:04.2]} 35. Kf3 {[%clk 0:00:24.6]} 35... Nf5 {[%clk 0:00:04.8]}
36. a4 {[%clk 0:00:23.4]} 36... Qf7 {[%clk 0:00:05.2]} 37. a5 {[%clk 0:00:21.3]}
37... Kf6 {[%clk 0:00:05.4]} 38. Bf2 {[%clk 0:00:16.6]} 38... Qe7 {[%clk
0:00:05.6]} 39. Qb1 {[%clk 0:00:16.1]} 39... Qg7 {[%clk 0:00:02.8]} 40. Qb5
{[%clk 0:00:14]} 40... Qe7 {[%clk 0:00:02.4]} 41. a6 {[%clk 0:00:14.1]} 41...
bxa6 {[%clk 0:00:02.2]} 42. Qxa6 {[%clk 0:00:15]} 42... h4 {[%clk 0:00:02.2]}
43. Qc8 {[%clk 0:00:13.9]} 43... Qf7 {[%clk 0:00:01.9]} 44. Qd8+ {[%clk
0:00:13.6]} 44... Kg6 {[%clk 0:00:02.4]} 45. Bxh4 {[%clk 0:00:12.6]} 45... Nh6
{[%clk 0:00:01.6]} 46. Qxd6+ {[%clk 0:00:12.1]} 46... Kh5 {[%clk 0:00:01.7]} 47.
Bg5 {[%clk 0:00:11.7]} 1-0

[Event "Late-Titled-Tuesday-Blitz-January-30-2024"]
[Site "Chess.com"]
[Date "2024.01.30"]
[Round "4"]
[White "RaulPerezGuerra"]
[Black "Chempiblinka"]
[Result "0-1"]
[WhiteElo "2445"]
[BlackElo "2310"]
[TimeControl "180+1"]
[EndTime "14:39:07 PST"]
[Termination "Chempiblinka won on time"]

1. b3 {[%clk 0:03:00.9]} 1... Nf6 {[%clk 0:02:59.1]} 2. Bb2 {[%clk 0:03:00.7]}
2... g6 {[%clk 0:03:00]} 3. c4 {[%clk 0:02:56]} 3... Bg7 {[%clk 0:03:00.1]} 4.
Nf3 {[%clk 0:02:56.9]} 4... O-O {[%clk 0:03:00.2]} 5. e3 {[%clk 0:02:54.7]} 5...
c5 {[%clk 0:03:00.8]} 6. Be2 {[%clk 0:02:54.3]} 6... d5 {[%clk 0:03:00.9]} 7.
cxd5 {[%clk 0:02:53.7]} 7... Nxd5 {[%clk 0:02:59.2]} 8. Bxg7 {[%clk 0:02:51]}
8... Kxg7 {[%clk 0:03:00.1]} 9. Qc1 {[%clk 0:02:50.6]} 9... b6 {[%clk 0:02:48]}
10. O-O {[%clk 0:02:49.9]} 10... e6 {[%clk 0:02:45.3]} 11. Nc3 {[%clk
0:02:47.6]} 11... Bb7 {[%clk 0:02:43.7]} 12. d4 {[%clk 0:02:47.4]} 12... Nd7
{[%clk 0:02:37.4]} 13. Rd1 {[%clk 0:02:39]} 13... Qf6 {[%clk 0:02:29.4]} 14. Qb2
{[%clk 0:02:23.6]} 14... Nxc3 {[%clk 0:02:23.7]} 15. Qxc3 {[%clk 0:02:24.5]}
15... Rac8 {[%clk 0:02:23.8]} 16. Rac1 {[%clk 0:02:21.2]} 16... Rfd8 {[%clk
0:01:53.5]} 17. dxc5 {[%clk 0:02:09.9]} 17... Qxc3 {[%clk 0:01:41]} 18. Rxc3
{[%clk 0:02:10.8]} 18... Nxc5 {[%clk 0:01:41.2]} 19. Rxd8 {[%clk 0:02:07.1]}
19... Rxd8 {[%clk 0:01:40.9]} 20. b4 {[%clk 0:02:08]} 20... Ne4 {[%clk
0:01:14.5]} 21. Rc7 {[%clk 0:02:07.8]} 21... Bd5 {[%clk 0:01:10.3]} 22. Rxa7
{[%clk 0:02:05.7]} 22... Nc3 {[%clk 0:01:09.9]} 23. Bf1 {[%clk 0:01:57]} 23...
Bxa2 {[%clk 0:01:04.6]} 24. g3 {[%clk 0:01:46.8]} 24... Rd1 {[%clk 0:01:02.6]}
25. Kg2 {[%clk 0:01:45.6]} 25... Bd5 {[%clk 0:01:01]} 26. b5 {[%clk 0:01:34.4]}
26... Ne4 {[%clk 0:00:27.4]} 27. Be2 {[%clk 0:01:25]} 27... Rb1 {[%clk
0:00:23.2]} 28. Ra6 {[%clk 0:00:55.9]} 28... Nc3 {[%clk 0:00:21.7]} 29. Bd3
{[%clk 0:00:50.3]} 29... Rd1 {[%clk 0:00:21.2]} 30. Bc2 {[%clk 0:00:42]} 30...
Rd2 {[%clk 0:00:20.5]} 31. Bb3 {[%clk 0:00:24.1]} 31... Ne4 {[%clk 0:00:15]} 32.
Bxd5 {[%clk 0:00:17.1]} 32... Rxf2+ {[%clk 0:00:14.1]} 33. Kg1 {[%clk
0:00:15.8]} 33... exd5 {[%clk 0:00:15]} 34. Nd4 {[%clk 0:00:10.8]} 34... Rb2
{[%clk 0:00:13.4]} 35. Rxb6 {[%clk 0:00:11]} 35... Nd2 {[%clk 0:00:11.7]} 36.
Rb8 {[%clk 0:00:09]} 36... Nc4 {[%clk 0:00:12]} 37. h4 {[%clk 0:00:04.7]} 37...
Nxe3 {[%clk 0:00:12.6]} 38. b6 {[%clk 0:00:04.5]} 38... Rb1+ {[%clk 0:00:11.7]}
39. Kf2 {[%clk 0:00:04.3]} 39... Ng4+ {[%clk 0:00:12.1]} 40. Kf3 {[%clk
0:00:04.5]} 40... Ne5+ {[%clk 0:00:12.7]} 41. Kf4 {[%clk 0:00:03.8]} 41... f6
{[%clk 0:00:11.4]} 42. b7 {[%clk 0:00:01.3]} 42... Nd7 {[%clk 0:00:09.3]} 43.
Re8 {[%clk 0:00:01.8]} 43... Rxb7 {[%clk 0:00:08.3]} 44. Re7+ {[%clk 0:00:02.4]}
44... Kf8 {[%clk 0:00:08.3]} 45. Rxh7 {[%clk 0:00:02.3]} 45... Ne5 {[%clk
0:00:07.6]} 0-1